[Event "Early-Titled-Tuesday-Blitz-October-03-2023"]
[Site "Chess.com"]
[Date "2023.10.03"]
[Round "2"]
[White "FMVolodymyrSakun"]
[Black "Ergali_Suleimen"]
[Result "0-1"]
[WhiteElo "2658"]
[BlackElo "2393"]
[TimeControl "180+1"]
[EndTime "8:17:53 PDT"]
[Termination "Ergali_Suleimen won by resignation"]

1. e4 {[%clk 0:03:00.9]} 1... c5 {[%clk 0:02:52.2]} 2. Nf3 {[%clk 0:03:00.5]}
2... Nc6 {[%clk 0:02:52]} 3. Bb5 {[%clk 0:03:00.2]} 3... g6 {[%clk 0:02:50.8]}
4. c3 {[%clk 0:02:59.7]} 4... Bg7 {[%clk 0:02:50.5]} 5. O-O {[%clk 0:02:59.9]}
5... e5 {[%clk 0:02:50.7]} 6. d4 {[%clk 0:02:56.3]} 6... cxd4 {[%clk 0:02:49.9]}
7. cxd4 {[%clk 0:02:56.5]} 7... exd4 {[%clk 0:02:50.7]} 8. Bf4 {[%clk
0:02:55.7]} 8... a6 {[%clk 0:02:51.1]} 9. Ba4 {[%clk 0:02:49.9]} 9... Nge7
{[%clk 0:02:49.5]} 10. Bd6 {[%clk 0:02:47.7]} 10... b5 {[%clk 0:02:49.5]} 11.
Bb3 {[%clk 0:02:47.3]} 11... Bb7 {[%clk 0:02:50.1]} 12. Ng5 {[%clk 0:02:41.6]}
12... O-O {[%clk 0:02:49.6]} 13. Qf3 {[%clk 0:02:40.9]} 13... Qe8 {[%clk
0:02:49.7]} 14. Qh3 {[%clk 0:02:36.1]} 14... h6 {[%clk 0:02:48.7]} 15. Nf3
{[%clk 0:02:35.5]} 15... Na5 {[%clk 0:02:44.6]} 16. Nbd2 {[%clk 0:02:29]} 16...
Nxb3 {[%clk 0:02:42.9]} 17. Nxb3 {[%clk 0:02:26.7]} 17... Bxe4 {[%clk
0:02:38.5]} 18. Rfe1 {[%clk 0:02:27]} 18... f5 {[%clk 0:01:58.7]} 19. Nc5 {[%clk
0:02:20.3]} 19... Rf6 {[%clk 0:01:37.3]} 20. Be5 {[%clk 0:02:08.1]} 20... Qf7
{[%clk 0:01:30.9]} 21. Bxf6 {[%clk 0:02:02.8]} 21... Qxf6 {[%clk 0:01:24.6]} 22.
Nxe4 {[%clk 0:02:02.8]} 22... fxe4 {[%clk 0:01:25.1]} 23. Rxe4 {[%clk
0:02:02.3]} 23... Nf5 {[%clk 0:01:25.7]} 24. Rd1 {[%clk 0:01:53.9]} 24... Rc8
{[%clk 0:01:18.2]} 25. g4 {[%clk 0:01:44.3]} 25... d5 {[%clk 0:01:09.4]} 26. Re5
{[%clk 0:01:13.3]} 26... Nd6 {[%clk 0:01:00]} 27. Rxd5 {[%clk 0:01:09.8]} 27...
Qe6 {[%clk 0:00:54.7]} 28. R5xd4 {[%clk 0:00:56.2]} 28... Bxd4 {[%clk
0:00:54.3]} 29. Nxd4 {[%clk 0:00:56.6]} 29... Qe4 {[%clk 0:00:43.7]} 30. Qf3
{[%clk 0:00:54]} 30... Rc4 {[%clk 0:00:32.2]} 31. Qxe4 {[%clk 0:00:44.4]} 31...
Nxe4 {[%clk 0:00:32.7]} 32. Kg2 {[%clk 0:00:41.6]} 32... Nf6 {[%clk 0:00:30.7]}
33. Kf3 {[%clk 0:00:38.8]} 33... Kf7 {[%clk 0:00:30.4]} 34. h3 {[%clk
0:00:38.6]} 34... b4 {[%clk 0:00:28.5]} 35. Ke3 {[%clk 0:00:37.3]} 35... Nd5+
{[%clk 0:00:26.4]} 36. Ke4 {[%clk 0:00:35]} 36... Nf6+ {[%clk 0:00:25]} 37. Kd3
{[%clk 0:00:35]} 37... Rc7 {[%clk 0:00:25.3]} 38. f4 {[%clk 0:00:30.7]} 38... a5
{[%clk 0:00:23.4]} 39. Re1 {[%clk 0:00:26.7]} 39... Rd7 {[%clk 0:00:22.7]} 40.
Rf1 {[%clk 0:00:17.4]} 40... Nd5 {[%clk 0:00:21.3]} 41. Kc4 {[%clk 0:00:16.8]}
41... Ne3+ {[%clk 0:00:21]} 42. Kc5 {[%clk 0:00:17.2]} 42... Nxf1 {[%clk
0:00:19]} 43. Nc6 {[%clk 0:00:17.6]} 43... Ke6 {[%clk 0:00:17.9]} 44. Nxa5
{[%clk 0:00:17.1]} 44... Nd2 {[%clk 0:00:17.5]} 45. Kxb4 {[%clk 0:00:16.1]}
45... Ne4 {[%clk 0:00:16.8]} 46. Nc4 {[%clk 0:00:15.7]} 46... Rd4 {[%clk
0:00:16.8]} 47. b3 {[%clk 0:00:14.1]} 47... Nd6 {[%clk 0:00:16.7]} 48. Kc3
{[%clk 0:00:14.1]} 48... Rxf4 {[%clk 0:00:17.4]} 49. Nd2 {[%clk 0:00:13.3]}
49... Ne4+ {[%clk 0:00:16.7]} 50. Kd3 {[%clk 0:00:13.2]} 50... Nxd2 {[%clk
0:00:16.6]} 51. Kxd2 {[%clk 0:00:14.1]} 51... Rf2+ {[%clk 0:00:16.6]} 0-1

[Event "Early-Titled-Tuesday-Blitz-October-03-2023"]
[Site "Chess.com"]
[Date "2023.10.03"]
[Round "2"]
[White "Kopytkin"]
[Black "chess94cu"]
[Result "1-0"]
[WhiteElo "2404"]
[BlackElo "2693"]
[TimeControl "180+1"]
[EndTime "8:17:54 PDT"]
[Termination "Kopytkin won by checkmate"]

1. d4 {[%clk 0:03:00.9]} 1... Nf6 {[%clk 0:02:59.5]} 2. Bg5 {[%clk 0:03:00.8]}
2... e6 {[%clk 0:02:56.4]} 3. Nd2 {[%clk 0:03:00.1]} 3... h6 {[%clk 0:02:56]} 4.
Bh4 {[%clk 0:02:59.9]} 4... g5 {[%clk 0:02:52.7]} 5. Bg3 {[%clk 0:02:59.5]} 5...
d6 {[%clk 0:02:53.3]} 6. e4 {[%clk 0:02:56.2]} 6... Bg7 {[%clk 0:02:51.6]} 7. h4
{[%clk 0:02:52.5]} 7... g4 {[%clk 0:02:50.8]} 8. Bd3 {[%clk 0:02:51.3]} 8...
Nbd7 {[%clk 0:02:45.7]} 9. h5 {[%clk 0:02:46.4]} 9... b6 {[%clk 0:02:41.7]} 10.
Ne2 {[%clk 0:02:43.4]} 10... Bb7 {[%clk 0:02:40.6]} 11. Nc3 {[%clk 0:02:42.3]}
11... a6 {[%clk 0:02:34.5]} 12. Qe2 {[%clk 0:02:42.4]} 12... e5 {[%clk
0:02:27.9]} 13. dxe5 {[%clk 0:02:33.4]} 13... Nxe5 {[%clk 0:02:28.8]} 14. Bxe5
{[%clk 0:02:33.5]} 14... dxe5 {[%clk 0:02:29]} 15. O-O-O {[%clk 0:02:34.4]}
15... Qe7 {[%clk 0:02:28.4]} 16. Nc4 {[%clk 0:02:31.8]} 16... O-O-O {[%clk
0:02:10.4]} 17. Ne3 {[%clk 0:02:31.4]} 17... a5 {[%clk 0:02:11.1]} 18. Nf5
{[%clk 0:02:25.4]} 18... Qf8 {[%clk 0:01:50.4]} 19. Ba6 {[%clk 0:02:20.2]} 19...
Nd7 {[%clk 0:01:28.7]} 20. Bb5 {[%clk 0:01:22.8]} 20... Bf6 {[%clk 0:01:16.5]}
21. Qxg4 {[%clk 0:01:17.6]} 21... Rg8 {[%clk 0:01:13.7]} 22. Qe2 {[%clk
0:01:08.5]} 22... Nc5 {[%clk 0:01:09.5]} 23. f3 {[%clk 0:01:06]} 23... Ne6
{[%clk 0:00:59.9]} 24. g4 {[%clk 0:00:51.9]} 24... Nd4 {[%clk 0:00:51.5]} 25.
Nxd4 {[%clk 0:00:44.3]} 25... exd4 {[%clk 0:00:52.4]} 26. Nd5 {[%clk 0:00:44.3]}
26... Bxd5 {[%clk 0:00:48.3]} 27. exd5 {[%clk 0:00:43.5]} 27... Qe7 {[%clk
0:00:31.8]} 28. Qxe7 {[%clk 0:00:27.1]} 28... Bxe7 {[%clk 0:00:32.7]} 29. Bc6
{[%clk 0:00:21.9]} 29... Bg5+ {[%clk 0:00:30.7]} 30. Kb1 {[%clk 0:00:21.6]}
30... Be3 {[%clk 0:00:31.6]} 31. Rhe1 {[%clk 0:00:19.6]} 31... f5 {[%clk
0:00:20.2]} 32. gxf5 {[%clk 0:00:19]} 32... Rgf8 {[%clk 0:00:20.9]} 33. c3
{[%clk 0:00:18.5]} 33... Rxf5 {[%clk 0:00:21.6]} 34. cxd4 {[%clk 0:00:18.9]}
34... Bg5 {[%clk 0:00:22.2]} 35. Rd3 {[%clk 0:00:16.7]} 35... Bf6 {[%clk
0:00:18.5]} 36. a3 {[%clk 0:00:16.1]} 36... Rxh5 {[%clk 0:00:18.3]} 37. b4
{[%clk 0:00:16.7]} 37... a4 {[%clk 0:00:16.6]} 38. Bxa4 {[%clk 0:00:16.1]} 38...
Rh4 {[%clk 0:00:17.2]} 39. Re4 {[%clk 0:00:14.8]} 39... h5 {[%clk 0:00:15.6]}
40. Bc6 {[%clk 0:00:13]} 40... Rg8 {[%clk 0:00:14.8]} 41. Rxh4 {[%clk
0:00:09.3]} 41... Bxh4 {[%clk 0:00:15.7]} 42. a4 {[%clk 0:00:08.9]} 42... Bf6
{[%clk 0:00:10.6]} 43. a5 {[%clk 0:00:08.6]} 43... h4 {[%clk 0:00:10.6]} 44. a6
{[%clk 0:00:08.3]} 44... Kb8 {[%clk 0:00:11.1]} 45. a7+ {[%clk 0:00:08.4]} 45...
Kxa7 {[%clk 0:00:08.6]} 46. Ra3+ {[%clk 0:00:08.5]} 46... Kb8 {[%clk 0:00:08.8]}
47. Ra8# {[%clk 0:00:08.6]} 1-0

[Event "Early-Titled-Tuesday-Blitz-October-03-2023"]
[Site "Chess.com"]
[Date "2023.10.03"]
[Round "2"]
[White "ShiroglanTalibov"]
[Black "GeorgiosSouleidis"]
[Result "1-0"]
[WhiteElo "2890"]
[BlackElo "2600"]
[TimeControl "180+1"]
[EndTime "8:17:55 PDT"]
[Termination "ShiroglanTalibov won on time"]

1. d4 {[%clk 0:03:00.9]} 1... Nf6 {[%clk 0:02:58.9]} 2. c4 {[%clk 0:03:00.7]}
2... g6 {[%clk 0:02:59.4]} 3. Nc3 {[%clk 0:03:00.5]} 3... Bg7 {[%clk 0:03:00]}
4. e4 {[%clk 0:03:00.2]} 4... d6 {[%clk 0:03:00.5]} 5. Nf3 {[%clk 0:03:00]} 5...
O-O {[%clk 0:03:00.7]} 6. Be2 {[%clk 0:03:00.2]} 6... e5 {[%clk 0:03:00.8]} 7.
Be3 {[%clk 0:02:55.5]} 7... Ng4 {[%clk 0:03:00.4]} 8. Bg5 {[%clk 0:02:55.3]}
8... f6 {[%clk 0:03:01]} 9. Bh4 {[%clk 0:02:53.6]} 9... Nc6 {[%clk 0:02:59.3]}
10. d5 {[%clk 0:02:52.8]} 10... Ne7 {[%clk 0:02:59.5]} 11. h3 {[%clk 0:02:53.2]}
11... Nh6 {[%clk 0:02:59.4]} 12. g4 {[%clk 0:02:53.5]} 12... Nf7 {[%clk
0:02:17.6]} 13. Qc2 {[%clk 0:02:44.4]} 13... c6 {[%clk 0:01:54]} 14. O-O-O
{[%clk 0:02:41.4]} 14... cxd5 {[%clk 0:01:53.4]} 15. cxd5 {[%clk 0:02:36.1]}
15... Bd7 {[%clk 0:01:53.3]} 16. Kb1 {[%clk 0:02:36]} 16... Rc8 {[%clk
0:01:53.3]} 17. Qb3 {[%clk 0:02:35.1]} 17... b5 {[%clk 0:01:37.7]} 18. Bxb5
{[%clk 0:02:31.9]} 18... Rb8 {[%clk 0:01:37.7]} 19. Qa4 {[%clk 0:01:27.3]} 19...
Qb6 {[%clk 0:01:35.6]} 20. Rd2 {[%clk 0:01:13]} 20... Bxb5 {[%clk 0:01:35.4]}
21. Nxb5 {[%clk 0:01:03.6]} 21... Qxb5 {[%clk 0:01:35.9]} 22. Qxa7 {[%clk
0:01:04]} 22... Rb7 {[%clk 0:01:27.7]} 23. Qa3 {[%clk 0:01:00]} 23... Rc8 {[%clk
0:01:13.7]} 24. Qd3 {[%clk 0:00:50.7]} 24... Qa4 {[%clk 0:01:05.9]} 25. b3
{[%clk 0:00:46.7]} 25... Qb4 {[%clk 0:01:00.7]} 26. Rc2 {[%clk 0:00:43.3]} 26...
Rbc7 {[%clk 0:00:49.3]} 27. Rhc1 {[%clk 0:00:41.2]} 27... Rxc2 {[%clk
0:00:44.5]} 28. Rxc2 {[%clk 0:00:41.4]} 28... Rxc2 {[%clk 0:00:32.9]} 29. Qxc2
{[%clk 0:00:42.3]} 29... g5 {[%clk 0:00:25.6]} 30. Bg3 {[%clk 0:00:40]} 30...
Nd8 {[%clk 0:00:24.8]} 31. Nd2 {[%clk 0:00:36.1]} 31... Nb7 {[%clk 0:00:24.6]}
32. Nc4 {[%clk 0:00:35.2]} 32... Ng6 {[%clk 0:00:21.3]} 33. f3 {[%clk
0:00:32.3]} 33... Bf8 {[%clk 0:00:20.4]} 34. Qd2 {[%clk 0:00:27.5]} 34... Qb5
{[%clk 0:00:18.8]} 35. Kb2 {[%clk 0:00:26.4]} 35... Nc5 {[%clk 0:00:18.3]} 36.
Bf2 {[%clk 0:00:25]} 36... Nf4 {[%clk 0:00:17.9]} 37. Kc2 {[%clk 0:00:22.4]}
37... h6 {[%clk 0:00:17.3]} 38. Qa5 {[%clk 0:00:19.6]} 38... Qb8 {[%clk
0:00:09.8]} 39. Bxc5 {[%clk 0:00:18.1]} 39... dxc5 {[%clk 0:00:10.7]} 40. Qa6
{[%clk 0:00:18.2]} 40... Kf7 {[%clk 0:00:09.5]} 41. a4 {[%clk 0:00:16.5]} 41...
h5 {[%clk 0:00:08.6]} 42. a5 {[%clk 0:00:14.8]} 42... Ne2 {[%clk 0:00:09.1]} 43.
Qb6 {[%clk 0:00:09.8]} 43... Nd4+ {[%clk 0:00:10]} 44. Kc3 {[%clk 0:00:08.8]}
44... Qa8 {[%clk 0:00:06.9]} 45. a6 {[%clk 0:00:07.1]} 45... Be7 {[%clk
0:00:07.4]} 46. Qb7 {[%clk 0:00:06.5]} 46... Qd8 {[%clk 0:00:06.1]} 47. d6
{[%clk 0:00:05.9]} 1-0

[Event "Early-Titled-Tuesday-Blitz-October-03-2023"]
[Site "Chess.com"]
[Date "2023.10.03"]
[Round "2"]
[White "microbear"]
[Black "WindWhistler11"]
[Result "0-1"]
[WhiteElo "2199"]
[BlackElo "2465"]
[TimeControl "180+1"]
[EndTime "8:17:57 PDT"]
[Termination "WindWhistler11 won by resignation"]

1. e4 {[%clk 0:02:52.2]} 1... e6 {[%clk 0:02:59.7]} 2. d4 {[%clk 0:02:52]} 2...
d5 {[%clk 0:03:00.4]} 3. exd5 {[%clk 0:02:52.3]} 3... exd5 {[%clk 0:03:00.5]} 4.
Bd3 {[%clk 0:02:51.7]} 4... Nc6 {[%clk 0:03:01.2]} 5. c3 {[%clk 0:02:51.5]} 5...
Nge7 {[%clk 0:03:01.9]} 6. Qf3 {[%clk 0:02:48.6]} 6... Be6 {[%clk 0:03:01.9]} 7.
Ne2 {[%clk 0:02:48.9]} 7... Qd7 {[%clk 0:03:02.5]} 8. h3 {[%clk 0:02:48.7]} 8...
O-O-O {[%clk 0:03:01.4]} 9. Bf4 {[%clk 0:02:47.1]} 9... h6 {[%clk 0:02:54.4]}
10. Nd2 {[%clk 0:02:45.6]} 10... g5 {[%clk 0:02:54.4]} 11. Bh2 {[%clk
0:02:36.4]} 11... Bg7 {[%clk 0:02:54.2]} 12. O-O-O {[%clk 0:02:35.3]} 12... f5
{[%clk 0:02:42.2]} 13. Ng3 {[%clk 0:02:17.3]} 13... f4 {[%clk 0:02:28.9]} 14.
Nh5 {[%clk 0:02:15.2]} 14... Nf5 {[%clk 0:02:23]} 15. Nxg7 {[%clk 0:02:09]}
15... Qxg7 {[%clk 0:02:21.4]} 16. g3 {[%clk 0:02:08.7]} 16... fxg3 {[%clk
0:01:45.5]} 17. Bxg3 {[%clk 0:02:05.7]} 17... Rhf8 {[%clk 0:01:44.8]} 18. Bxf5
{[%clk 0:01:57.7]} 18... Bxf5 {[%clk 0:01:44.1]} 19. Qh5 {[%clk 0:01:48.7]}
19... Qf6 {[%clk 0:01:26.1]} 20. Rde1 {[%clk 0:01:46.6]} 20... Bh7 {[%clk
0:01:23.3]} 21. Re3 {[%clk 0:01:29.7]} 21... Kb8 {[%clk 0:00:59.4]} 22. Rhe1
{[%clk 0:01:26]} 22... Qf5 {[%clk 0:00:58.4]} 23. Qd1 {[%clk 0:01:06.9]} 23...
Na5 {[%clk 0:00:47]} 24. b3 {[%clk 0:00:57]} 24... a6 {[%clk 0:00:39.3]} 25. Kb2
{[%clk 0:00:55.6]} 25... Nc6 {[%clk 0:00:34]} 26. Nf3 {[%clk 0:00:50.3]} 26...
Qxh3 {[%clk 0:00:32.3]} 27. Ne5 {[%clk 0:00:45]} 27... Nxe5 {[%clk 0:00:26.2]}
28. Rxe5 {[%clk 0:00:38.8]} 28... Be4 {[%clk 0:00:19.3]} 29. Re7 {[%clk
0:00:23.3]} 29... Rd7 {[%clk 0:00:19.7]} 30. Rxd7 {[%clk 0:00:21.1]} 30... Qxd7
{[%clk 0:00:20.6]} 31. Qh5 {[%clk 0:00:20.4]} 31... Rf6 {[%clk 0:00:15.8]} 32.
Re2 {[%clk 0:00:15.3]} 32... Ka7 {[%clk 0:00:13.9]} 33. Re3 {[%clk 0:00:14.2]}
33... Qb5 {[%clk 0:00:12.5]} 34. Qe2 {[%clk 0:00:13.5]} 34... Qxe2+ {[%clk
0:00:09.7]} 35. Rxe2 {[%clk 0:00:14.4]} 35... h5 {[%clk 0:00:10.2]} 36. Be5
{[%clk 0:00:13.4]} 36... Rf3 {[%clk 0:00:10.6]} 37. Bxc7 {[%clk 0:00:13.3]}
37... h4 {[%clk 0:00:09.3]} 38. c4 {[%clk 0:00:13.4]} 38... g4 {[%clk
0:00:08.1]} 39. cxd5 {[%clk 0:00:13.3]} 39... Bxd5 {[%clk 0:00:08]} 40. a4
{[%clk 0:00:10.6]} 40... h3 {[%clk 0:00:02.5]} 41. a5 {[%clk 0:00:10]} 41...
Rxb3+ {[%clk 0:00:02.7]} 42. Kc2 {[%clk 0:00:06.9]} 42... Rb4 {[%clk 0:00:02.3]}
43. Bb6+ {[%clk 0:00:06.5]} 43... Rxb6 {[%clk 0:00:02.9]} 44. axb6+ {[%clk
0:00:07.4]} 44... Kxb6 {[%clk 0:00:03.6]} 45. f4 {[%clk 0:00:05.1]} 45... g3
{[%clk 0:00:03.5]} 0-1

[Event "Early-Titled-Tuesday-Blitz-October-03-2023"]
[Site "Chess.com"]
[Date "2023.10.03"]
[Round "2"]
[White "MAGMAchess02"]
[Black "Sergey85Rodchenkov"]
[Result "1-0"]
[WhiteElo "2357"]
[BlackElo "2514"]
[TimeControl "180+1"]
[EndTime "8:17:58 PDT"]
[Termination "MAGMAchess02 won on time"]

1. Nf3 {[%clk 0:02:57.9]} 1... d5 {[%clk 0:02:58.8]} 2. c4 {[%clk 0:02:55.5]}
2... dxc4 {[%clk 0:02:58.6]} 3. e3 {[%clk 0:02:53.7]} 3... Nf6 {[%clk
0:02:58.7]} 4. Bxc4 {[%clk 0:02:52.5]} 4... a6 {[%clk 0:02:59.1]} 5. O-O {[%clk
0:02:51.3]} 5... e6 {[%clk 0:02:59.3]} 6. Qe2 {[%clk 0:02:50.1]} 6... Nbd7
{[%clk 0:02:56.1]} 7. Rd1 {[%clk 0:02:50]} 7... b5 {[%clk 0:02:50.7]} 8. Bb3
{[%clk 0:02:48.3]} 8... c5 {[%clk 0:02:50.9]} 9. a4 {[%clk 0:02:45.5]} 9... Bb7
{[%clk 0:02:21.5]} 10. d4 {[%clk 0:02:12.1]} 10... c4 {[%clk 0:02:12.4]} 11. Bc2
{[%clk 0:02:12.2]} 11... Be7 {[%clk 0:02:09.6]} 12. b3 {[%clk 0:02:06.4]} 12...
cxb3 {[%clk 0:01:38.9]} 13. Bxb3 {[%clk 0:02:07.3]} 13... bxa4 {[%clk
0:01:38.9]} 14. Bxa4 {[%clk 0:01:47.4]} 14... O-O {[%clk 0:01:36.2]} 15. Ba3
{[%clk 0:01:47]} 15... Rc8 {[%clk 0:01:24.6]} 16. Ne5 {[%clk 0:01:29.4]} 16...
Nb6 {[%clk 0:01:12.4]} 17. Bb3 {[%clk 0:01:24.9]} 17... Ne4 {[%clk 0:01:02.3]}
18. Qb2 {[%clk 0:00:42.2]} 18... Bxa3 {[%clk 0:00:45.9]} 19. Nxa3 {[%clk
0:00:32.5]} 19... Qg5 {[%clk 0:00:39.5]} 20. Nf3 {[%clk 0:00:29.8]} 20... Qf6
{[%clk 0:00:25.7]} 21. Nc4 {[%clk 0:00:24.1]} 21... Nxc4 {[%clk 0:00:23.8]} 22.
Bxc4 {[%clk 0:00:25]} 22... Rxc4 {[%clk 0:00:24]} 23. Qxb7 {[%clk 0:00:24.6]}
23... Ng5 {[%clk 0:00:22.7]} 24. Nxg5 {[%clk 0:00:21.3]} 24... Qxg5 {[%clk
0:00:23.6]} 25. Rxa6 {[%clk 0:00:20.4]} 25... h5 {[%clk 0:00:23.4]} 26. Qe4
{[%clk 0:00:16.1]} 26... h4 {[%clk 0:00:19.8]} 27. h3 {[%clk 0:00:16.2]} 27...
Rfc8 {[%clk 0:00:19.7]} 28. Ra8 {[%clk 0:00:13.6]} 28... Rxa8 {[%clk 0:00:17.8]}
29. Qxa8+ {[%clk 0:00:14.5]} 29... Kh7 {[%clk 0:00:18.5]} 30. Qe4+ {[%clk
0:00:14.6]} 30... g6 {[%clk 0:00:18.8]} 31. Ra1 {[%clk 0:00:14.4]} 31... Kg7
{[%clk 0:00:18.6]} 32. Qf3 {[%clk 0:00:14.3]} 32... Qf5 {[%clk 0:00:16.8]} 33.
Qxf5 {[%clk 0:00:13.5]} 33... gxf5 {[%clk 0:00:17.2]} 34. Kf1 {[%clk 0:00:12.8]}
34... Rc2 {[%clk 0:00:16.8]} 35. Re1 {[%clk 0:00:10.5]} 35... Rc4 {[%clk
0:00:16.4]} 36. Ke2 {[%clk 0:00:09.9]} 36... Rc2+ {[%clk 0:00:16.2]} 37. Kf3
{[%clk 0:00:10.6]} 37... Kf6 {[%clk 0:00:15.8]} 38. Rb1 {[%clk 0:00:10.5]} 38...
Rc8 {[%clk 0:00:14.4]} 39. Rb7 {[%clk 0:00:10.4]} 39... Rh8 {[%clk 0:00:14.1]}
40. Rc7 {[%clk 0:00:10.1]} 40... Rd8 {[%clk 0:00:14]} 41. Rb7 {[%clk 0:00:09.9]}
41... Rh8 {[%clk 0:00:13.9]} 42. Ke2 {[%clk 0:00:09.3]} 42... Rc8 {[%clk
0:00:13.8]} 43. Ra7 {[%clk 0:00:08.1]} 43... Rb8 {[%clk 0:00:13.7]} 44. Ra3
{[%clk 0:00:06.7]} 44... Kg6 {[%clk 0:00:14]} 45. Ra5 {[%clk 0:00:06.8]} 45...
Kg5 {[%clk 0:00:14.2]} 46. Kf3 {[%clk 0:00:06.8]} 46... Rd8 {[%clk 0:00:13.8]}
47. Ra8 {[%clk 0:00:06]} 47... Kg6 {[%clk 0:00:14.2]} 48. Rxd8 {[%clk
0:00:05.8]} 1-0

[Event "Early-Titled-Tuesday-Blitz-October-03-2023"]
[Site "Chess.com"]
[Date "2023.10.03"]
[Round "2"]
[White "taleslascando"]
[Black "NovikovaGalina"]
[Result "0-1"]
[WhiteElo "2006"]
[BlackElo "2406"]
[TimeControl "180+1"]
[EndTime "8:17:58 PDT"]
[Termination "NovikovaGalina won on time"]

1. e4 {[%clk 0:02:58]} 1... e5 {[%clk 0:02:59.7]} 2. Nf3 {[%clk 0:02:57.9]} 2...
Nc6 {[%clk 0:03:00.2]} 3. Bb5 {[%clk 0:02:58]} 3... Nge7 {[%clk 0:03:00.5]} 4.
c3 {[%clk 0:02:49.5]} 4... g6 {[%clk 0:02:51.1]} 5. O-O {[%clk 0:02:48.2]} 5...
Bg7 {[%clk 0:02:50.3]} 6. d4 {[%clk 0:02:44]} 6... O-O {[%clk 0:02:45.3]} 7. d5
{[%clk 0:02:36.6]} 7... Nb8 {[%clk 0:02:44.5]} 8. c4 {[%clk 0:02:15.3]} 8... d6
{[%clk 0:02:43.5]} 9. Ne1 {[%clk 0:02:04.7]} 9... Nd7 {[%clk 0:02:34.9]} 10. Nd3
{[%clk 0:02:04.3]} 10... c6 {[%clk 0:02:17.8]} 11. Ba4 {[%clk 0:01:54.6]} 11...
cxd5 {[%clk 0:01:45]} 12. cxd5 {[%clk 0:01:51.5]} 12... Nb6 {[%clk 0:01:38.8]}
13. Nc3 {[%clk 0:01:43.4]} 13... Nxa4 {[%clk 0:01:34.9]} 14. Qxa4 {[%clk
0:01:34.3]} 14... Bd7 {[%clk 0:01:35.8]} 15. Qb4 {[%clk 0:01:27.2]} 15... Qc7
{[%clk 0:01:29]} 16. Be3 {[%clk 0:01:25.9]} 16... a5 {[%clk 0:01:28.4]} 17. Qb3
{[%clk 0:01:21.5]} 17... a4 {[%clk 0:01:27.5]} 18. Qb4 {[%clk 0:01:21.6]} 18...
a3 {[%clk 0:01:23.3]} 19. bxa3 {[%clk 0:01:12.8]} 19... Rfc8 {[%clk 0:01:14.1]}
20. Rfc1 {[%clk 0:01:04.9]} 20... Qb8 {[%clk 0:01:14.2]} 21. a4 {[%clk
0:01:00.1]} 21... h6 {[%clk 0:01:13.7]} 22. Nb5 {[%clk 0:00:59.7]} 22... Bxb5
{[%clk 0:01:13.2]} 23. axb5 {[%clk 0:00:59.3]} 23... Rxc1+ {[%clk 0:01:11.7]}
24. Nxc1 {[%clk 0:00:50.9]} 24... f5 {[%clk 0:01:11.4]} 25. f3 {[%clk
0:00:50.3]} 25... f4 {[%clk 0:01:06.3]} 26. Bf2 {[%clk 0:00:49.6]} 26... g5
{[%clk 0:01:06.9]} 27. a4 {[%clk 0:00:45]} 27... h5 {[%clk 0:01:06.9]} 28. h3
{[%clk 0:00:39.4]} 28... g4 {[%clk 0:01:06.7]} 29. hxg4 {[%clk 0:00:39.4]} 29...
hxg4 {[%clk 0:01:07.6]} 30. fxg4 {[%clk 0:00:39.8]} 30... Ng6 {[%clk 0:00:59.3]}
31. Nd3 {[%clk 0:00:20.5]} 31... Kh7 {[%clk 0:00:59.2]} 32. Rc1 {[%clk
0:00:17.7]} 32... Qd8 {[%clk 0:00:59.2]} 33. b6 {[%clk 0:00:16.5]} 33... Qg5
{[%clk 0:00:59]} 34. Rc7 {[%clk 0:00:14.9]} 34... Qxg4 {[%clk 0:00:55.6]} 35.
Qxd6 {[%clk 0:00:13.9]} 35... f3 {[%clk 0:00:54.7]} 36. g3 {[%clk 0:00:09.9]}
36... Qh3 {[%clk 0:00:52.4]} 37. Ne1 {[%clk 0:00:09.4]} 37... Rxa4 {[%clk
0:00:24.1]} 38. Nxf3 {[%clk 0:00:08.8]} 38... Ra1+ {[%clk 0:00:23.1]} 39. Ne1
{[%clk 0:00:07.6]} 39... Rb1 {[%clk 0:00:07.9]} 40. Rxb7 {[%clk 0:00:03.5]}
40... Nf4 {[%clk 0:00:07.4]} 41. Rxg7+ {[%clk 0:00:02.5]} 41... Kxg7 {[%clk
0:00:06.7]} 42. Qxe5+ {[%clk 0:00:02.8]} 42... Kg8 {[%clk 0:00:04.5]} 43. Qxf4
{[%clk 0:00:01.6]} 43... Qd7 {[%clk 0:00:04.1]} 0-1

[Event "Early-Titled-Tuesday-Blitz-October-03-2023"]
[Site "Chess.com"]
[Date "2023.10.03"]
[Round "2"]
[White "baki83"]
[Black "LikeWater"]
[Result "1-0"]
[WhiteElo "2822"]
[BlackElo "2568"]
[TimeControl "180+1"]
[EndTime "8:17:59 PDT"]
[Termination "baki83 won on time"]

1. e4 {[%clk 0:02:56.6]} 1... g6 {[%clk 0:03:00.4]} 2. h4 {[%clk 0:02:55.9]}
2... d5 {[%clk 0:03:00]} 3. e5 {[%clk 0:02:53.9]} 3... Bg7 {[%clk 0:02:57.2]} 4.
d4 {[%clk 0:02:53.6]} 4... c5 {[%clk 0:02:57]} 5. c3 {[%clk 0:02:51.4]} 5... f6
{[%clk 0:02:50.3]} 6. Nf3 {[%clk 0:02:39.8]} 6... Bg4 {[%clk 0:02:45.4]} 7. h5
{[%clk 0:02:27.6]} 7... fxe5 {[%clk 0:02:31.6]} 8. h6 {[%clk 0:02:22.1]} 8...
Bf6 {[%clk 0:02:31.5]} 9. dxe5 {[%clk 0:02:21.8]} 9... Bxf3 {[%clk 0:02:15.6]}
10. Qa4+ {[%clk 0:02:10.3]} 10... Kf7 {[%clk 0:01:56.4]} 11. exf6 {[%clk
0:01:56.6]} 11... Be4 {[%clk 0:01:56]} 12. fxe7 {[%clk 0:01:42]} 12... Qxe7
{[%clk 0:01:49.6]} 13. Be3 {[%clk 0:01:41.6]} 13... Nf6 {[%clk 0:01:49.6]} 14.
Nd2 {[%clk 0:01:41.4]} 14... Nc6 {[%clk 0:01:41]} 15. Nxe4 {[%clk 0:01:36.4]}
15... Qxe4 {[%clk 0:01:41.7]} 16. Qxe4 {[%clk 0:01:35.2]} 16... Nxe4 {[%clk
0:01:41.5]} 17. O-O-O {[%clk 0:01:27.6]} 17... Rhd8 {[%clk 0:01:31.7]} 18. Bd3
{[%clk 0:01:25.9]} 18... c4 {[%clk 0:01:26.3]} 19. Bxe4 {[%clk 0:01:07.2]} 19...
dxe4 {[%clk 0:01:27.1]} 20. Rh4 {[%clk 0:01:07.2]} 20... Rxd1+ {[%clk
0:01:19.7]} 21. Kxd1 {[%clk 0:01:07.1]} 21... Re8 {[%clk 0:01:20]} 22. Rf4+
{[%clk 0:01:07]} 22... Kg8 {[%clk 0:01:20.6]} 23. Kc2 {[%clk 0:00:33.7]} 23...
Re6 {[%clk 0:01:20.7]} 24. Bd4 {[%clk 0:00:30.3]} 24... a6 {[%clk 0:00:59.9]}
25. Bg7 {[%clk 0:00:26]} 25... Re8 {[%clk 0:00:54.3]} 26. Kd2 {[%clk 0:00:23.1]}
26... Rd8+ {[%clk 0:00:34.3]} 27. Ke2 {[%clk 0:00:20.4]} 27... Ne7 {[%clk
0:00:35.2]} 28. Rxe4 {[%clk 0:00:15.7]} 28... Nf5 {[%clk 0:00:35.8]} 29. Bf6
{[%clk 0:00:15.3]} 29... Rd6 {[%clk 0:00:30.8]} 30. Bg5 {[%clk 0:00:14.8]} 30...
Rc6 {[%clk 0:00:24.2]} 31. Re8+ {[%clk 0:00:13.1]} 31... Kf7 {[%clk 0:00:23.8]}
32. Rh8 {[%clk 0:00:13.7]} 32... Ke6 {[%clk 0:00:18.6]} 33. Rxh7 {[%clk
0:00:13.1]} 33... Nd6 {[%clk 0:00:17.4]} 34. Re7+ {[%clk 0:00:10.8]} 34... Kf5
{[%clk 0:00:17]} 35. h7 {[%clk 0:00:09.7]} 35... Rc8 {[%clk 0:00:17.4]} 36. f4
{[%clk 0:00:10]} 36... Kg4 {[%clk 0:00:09]} 37. Bf6 {[%clk 0:00:10.1]} 37... Nf5
{[%clk 0:00:09.9]} 38. Rxb7 {[%clk 0:00:07.7]} 38... Re8+ {[%clk 0:00:09.3]} 39.
Kd2 {[%clk 0:00:07.7]} 39... Ne3 {[%clk 0:00:07.2]} 40. h8=Q {[%clk 0:00:07]}
40... Nf1+ {[%clk 0:00:07.7]} 41. Kc1 {[%clk 0:00:06.4]} 41... Re1+ {[%clk
0:00:07.5]} 42. Kc2 {[%clk 0:00:06.9]} 1-0